Cogmind - Beta 9.3 @@@ ROGUE MODE // 2019.12.28 @ 16:58:30 Player: Cipherpunk Result: Destroyed by G-47 Trooper with Particle Gun Performance ------------- Evolutions (0) 0 Regions Visited (2) 400 Robots Destroyed (17) 85 Value Destroyed (420) 420 Prototype IDs (0) 0 Alien Tech Used (0) 0 Bonus (0) 0 TOTAL SCORE: 905 Bonus ------- None Cogmind --------- Core Integrity 0/250 Matter 215/300 Energy 120/125 System Corruption 0% Temperature Cool (14) Movement Walking (150) Ox1 Location -10/Mines Parts ------- > --- POWER (1) -------- Light Ion Engine > --- PROPULSION (2) --- Aluminum Leg Aluminum Leg > --- UTILITY (2) ------ High-capacity Storage Unit Core Shielding > --- WEAPON (2) ------- Minigun > --- INVENTORY (12) --- Aluminum Leg Compact Wheel Compact Wheel Medium Storage Unit Advanced Targeting Computer Hacking Suite Improved Trap Extractor Small Laser Improved Datajack Heavy Flail Peak State ------------ > --- POWER ------------ Light Ion Engine > --- PROPULSION ------- Aluminum Leg Aluminum Leg > --- UTILITY ---------- High-capacity Storage Unit Signal Interpreter > --- WEAPON ----------- Pulse Rifle Heavy Flail > --- INVENTORY -------- Light Ion Engine Compact Wheel Compact Wheel Medium Storage Unit Advanced Targeting Computer Hacking Suite Small Laser Autogun Autogun Minigun Improved Datajack [Rating: 13] Favorites ----------- Power Light Ion Engine Engine Light Ion Engine Propulsion Aluminum Leg Leg Aluminum Leg Utility Small Storage Unit Storage Small Storage Unit Processor Signal Interpreter Protection Core Shielding Weapon Autogun Energy Gun Pulse Rifle Ballistic Gun Autogun Impact Weapon Heavy Flail Build | -11 -10 -10 ------- Run | Scr Mat Min Slots Evolved . | . . . Power . | . . . Propulsion . | . . . Utility . | . . . Weapon . | . . . Parts Attached 14 | . 6 8 Power 2 | . 1 1 Engine 2 | . 1 1 Core . | . . . Reactor . | . . . Propulsion 2 | . . 2 Treads . | . . . Leg 2 | . . 2 Wheel . | . . . Hover . | . . . Flight . | . . . Utility 4 | . 3 1 Device . | . . . Storage 2 | . 2 . Processor 1 | . 1 . Hackware . | . . . Protection 1 | . . 1 Artifact . | . . . Weapon 6 | . 2 4 Energy Gun 1 | . . 1 Energy Cannon . | . . . Ballistic Gun 4 | . 2 2 Ballistic Cannon . | . . . Launcher . | . . . Special Weapon . | . . . Impact Weapon 1 | . . 1 Slashing Weapon . | . . . Piercing Weapon . | . . . Special Melee Weapon . | . . . Unidentified Prototypes . | . . . Parts Lost 4 | . . 4 Power 1 | . . 1 Propulsion 1 | . . 1 Utility . | . . . Weapon 2 | . . 2 Highest Loss Streak 2 | . . 2 Average Slot Usage (%) 95 | . 95 97 Engine 14 | . 14 14 Leg 27 | . 28 27 Storage 18 | . 20 14 Processor 6 | . 3 13 Energy Gun 3 | . . 9 Ballistic Gun 20 | . 27 5 Impact Weapon 3 | . . 11 Naked Turns . | . . . Heaviest Build 41 | 11 41 41 Greatest Support 20 | 20 20 20 Greatest Overweight (x) 3 | . 2 3 Average Overweight (x) 1 | . . 1 Largest Inventory Capacity 12 | . 12 12 Average Capacity 10 | . 9 12 Most Carried 12 | . 8 12 Average Carried 7 | . 6 11 Final Capacity 12 | 6 12 12 Final Carried 10 | 6 6 10 Class Distribution -------------------- 100% | Mutant Dominant Class ---------------- Mutant | -10/Materials Mutant | -10/Mines Resources | -11 -10 -10 ----------- Run | Scr Mat Min Matter Collected 662 | 197 363 102 Remotely . | . . . Salvage Created 594 | . 518 76 Parts 39 | . 35 4 Haulers Intercepted . | . . . Recyclers Shooed . | . . . Parts Field Recycled . | . . . Retrieved Matter . | . . . Parts Self-Destructed . | . . . Prevented . | . . . Kills | -11 -10 -10 ------- Run | Scr Mat Min Combat Hostiles Destroyed 12 | . 11 1 Guns 12 | . 11 1 Classes Destroyed 6 | . 5 1 Tunneler 1 | . . 1 Recycler 1 | . 1 . Operator 1 | . 1 . Watcher 2 | . 2 . Swarmer 3 | . 3 . Grunt 9 | . 8 1 Best Kill Streak 5 | . 5 1 Combat Bots Only 4 | . 4 1 Max Kills in Single Turn 1 | . 1 1 Gunslinging . | . . . Exploded . | . . . Melee . | . . . Uniques/NPCs Destroyed . | . . . Combat | -11 -10 -10 -------- Run | Scr Mat Min Damage Taken 778 | . 409 369 Core 250 | . 131 119 Absorbed by Shields . | . . . Core Remaining (%) 100 | 100 . . Volleys Fired 61 | . 42 19 Largest 2 | . 2 2 Hottest 63 | . 46 63 Shots Fired 112 | . 84 28 Gun 112 | . 84 28 Cannon . | . . . Launcher . | . . . Special . | . . . Kinetic 106 | . 84 22 Thermal 6 | . . 6 Explosive . | . . . Electromagnetic . | . . . Robot Hit Streak 7 | . 7 3 Robot Miss Streak 3 | . 3 2 Penetration Max . | . . . Secondary Targets 1 | . 1 . Max Gunslinging Chain 1 | . 1 . Shots Hit Robots 64 | . 48 16 Core Hits 22 | . 20 2 Critical Hits 2 | . 1 1 Critical Kills . | . . . Critical Parts Destroyed 2 | . 1 1 Melee Attacks 1 | . . 1 Impact 1 | . . 1 Slashing . | . . . Piercing . | . . . Sneak Attacks 1 | . . 1 Combat Hostiles . | . . . Follow-up Attacks . | . . . Damage Inflicted 1045 | . 740 305 Guns 970 | . 740 230 Cannons . | . . . Explosions . | . . . Melee 75 | . . 75 Ramming . | . . . Kinetic 886 | . 740 146 Thermal 84 | . . 84 Explosive . | . . . Electromagnetic . | . . . Impact 75 | . . 75 Slashing . | . . . Piercing . | . . . Highest Corruption . | . . . Average Corruption . | . . . Corruption Purged . | . . . Overload Shots . | . . . Overflow Damage 53 | . . 53 Projectiles . | . . . Explosions . | . . . Melee 53 | . . 53 Knockbacks 1 | . . 1 Impact 1 | . . 1 Kinetic . | . . . Secondary . | . . . Self-Inflicted Damage . | . . . Shots . | . . . Rammed . | . . . Targets Rammed 1 | . . 1 Kicked 1 | . . 1 Crushed . | . . . Highest Temperature 177 | . 30 177 Average Temperature 28 | . 10 61 Received Heat Transfer 396 | . 204 192 Siege Activations . | . . . Robots Corrupted . | . . . Combat Hostiles . | . . . Parts Fried 3 | . . 3 Impact Corruptions 2 | . . 2 Robots Melted . | . . . Combat Hostiles . | . . . Parts Melted . | . . . Heat Transferred 185 | . . 185 Parts Sabotaged . | . . . Parts Stolen . | . . . Parts Stripped . | . . . Power Chain Reactions . | . . . Missiles Intercepted . | . . . Alert | -11 -10 -10 ------- Run | Scr Mat Min Peak Influence 323 | . 323 73 Average Influence 119 | . 149 54 Maximum Alert Level 1 | . 1 . Low Security (%) 85 | . 79 100 Level 1 14 | . 20 . Level 2 . | . . . Level 3 . | . . . Level 4 . | . . . Level 5 . | . . . High Security . | . . . Max Security . | . . . Squads Dispatched 4 | . 4 . Investigation 2 | . 2 . Extermination . | . . . Reinforcement 2 | . 2 . Assault . | . . . Garrison . | . . . Intercept . | . . . Construction Impeded . | . . . Haulers Reinforced . | . . . Stealth | -11 -10 -10 --------- Run | Scr Mat Min Distress Signals 2 | . 2 . Communications Jammed . | . . . Distress Signals . | . . . Times Spotted 20 | . 17 3 Peak Tracking Total 4 | . 4 3 Tactical Retreats 2 | . 1 1 Traps | -11 -10 -10 ------- Run | Scr Mat Min Traps Triggered 2 | . 1 1 Indirectly . | . . . Trap Hack Attempts . | . . . Triggered . | . . . Disarmed . | . . . Reprogrammed . | . . . Reused . | . . . Traps Extracted . | . . . Installed . | . . . Triggered . | . . . Machines | -11 -10 -10 ---------- Run | Scr Mat Min Machines Disabled 1 | . . 1 Max in Single Turn 1 | . . 1 Machines Sabotaged . | . . . Garrisons Compromised . | . . . Overloaded Fab Kills . | . . . Fab Network Shutdowns . | . . . Hacking | -11 -10 -10 --------- Run | Scr Mat Min Machines Accessed 7 | . 6 1 Terminals 6 | . 6 . Fabricators . | . . . Repair Stations . | . . . Recycling Units . | . . . Scanalyzers . | . . . Garrison Access . | . . . Total Hacks 28 | . 27 1 Successful 15 | . 14 1 Failed 13 | . 13 . Catastrophic 3 | . 3 . Database Lockouts . | . . . Manual 27 | . 27 . Terminals 27 | . 27 . Fabricators . | . . . Repair Stations . | . . . Recycling Units . | . . . Scanalyzers . | . . . Garrison Access . | . . . Terminal Hacks 7 | . 6 1 Robot Schematic 1 | . 1 . Open Door 1 | . . 1 Branch Access Points 2 | . 2 . Terminal Index 1 | . 1 . Locate Traps 1 | . 1 . Zone Layout 1 | . 1 . Fabricator Hacks . | . . . Repair Station Hacks . | . . . Recycling Unit Hacks . | . . . Scanalyzer . | . . . Garrison Access Hacks . | . . . Unauthorized Hacks 18 | . 18 . Terminals 8 | . 8 . Track 2 | . 2 . Botnet 6 | . 6 . Fabricators . | . . . Repair Stations . | . . . Recycling Units . | . . . Scanalyzers . | . . . Garrison Access . | . . . Data Cores Recovered . | . . . Used . | . . . Hacking Detections 6 | . 6 . Full Trace Events 1 | . 1 . Feedback Events . | . . . Feedback Blocked . | . . . Robot Schematics Acquired 1 | . 1 . Robots Built . | . . . Matter . | . . . Time . | . . . Total Robot Build Rating . | . . . Part Schematics Acquired . | . . . Parts Built . | . . . Matter . | . . . Time . | . . . Total Part Build Rating . | . . . Parts Repaired . | . . . Time . | . . . Parts Recycled . | . . . Recycled Matter . | . . . Retrieved Matter . | . . . Retrieved Components . | . . . Parts Scanalyzed . | . . . Part Schematics Acquired . | . . . Parts Damaged . | . . . Bothacking | -11 -10 -10 ------------ Run | Scr Mat Min Used RIF Installer . | . . . Robots Hacked . | . . . Non-combat . | . . . Combat . | . . . Robot Hacks Applied . | . . . Relay Couplers Released . | . . . Robots Rewired . | . . . Allies Hacked . | . . . Hacks Repelled . | . . . Allies | -11 -10 -10 -------- Run | Scr Mat Min Total Allies . | . . . Largest Group . | . . . Highest-Rated Group . | . . . Highest-Rated Ally . | . . . Total Orders . | . . . Ally Attacks . | . . . Total Damage . | . . . Kills . | . . . Allies Corrupted . | . . . Allies Melted . | . . . Intel | -11 -10 -10 ------- Run | Scr Mat Min Robot Analysis Total . | . . . Derelict Logs Recovered . | . . . Drone Launches . | . . . Drone Recoveries . | . . . Exploration | -11 -10 -10 ------------- Run | Scr Mat Min Turns Passed 1031 | . 705 326 Spaces Moved 539 | 1 398 140 Core . | . . . Treads . | . . . Legs 539 | 1 398 140 Wheels . | . . . Hover . | . . . Flight . | . . . Fastest Speed 120 | 120 120 150 Average Speed 153 | 120 144 178 Slowest Speed 210 | 120 180 210 Overloaded Moves . | . . . Propulsion Burnouts . | . . . Robots Hopped . | . . . Cave-ins Triggered . | . . . Exploration Rate (%) 34 | 2 73 29 Regions Visited 2 Branch Regions 1 Pre-discovered Areas . | . . . Known Exits Taken 1 | . 1 . Unknown Exits Taken 1 | 1 . . Scrap Searched 1 | . . 1 Spaces Dug . | . . . Terrain Destroyed . | . . . Melee . | . . . Projectile . | . . . AOE . | . . . Actions | -11 -10 -10 --------- Run | Scr Mat Min Total 649 | . 461 188 Wait 17 | . 6 11 Move 537 | . 397 140 Hop . | . . . Pick Up 7 | . 2 5 Fast Attach 7 | . 4 3 Attach 2 | . . 2 Detach 3 | . 1 2 Swap 5 | . 2 3 Drop 8 | . 7 1 Fire 61 | . 42 19 Melee 1 | . . 1 Ram . | . . . Kick 1 | . . 1 Crush . | . . . Escape Stasis . | . . . Rewire . | . . . Trap . | . . . Miscellaneous . | . . . Route ------- -11/Scrapyard -10/Materials (discovered 4 exits: *Mat x3 / *Min) -10/Mines History --------- Turn | Location | Event 1 | -11/Scrapyard | Discovered new exit (range 0) 1 | -11/Scrapyard | Entered Materials 270 | -10/Materials | Identified exit to Mines 270 | -10/Materials | Discovered new exit (range 15) 303 | -10/Materials | Build established: Mutant 307 | -10/Materials | Core integrity fell below 50% 447 | -10/Materials | Discovered new exit (range 13) 632 | -10/Materials | Discovered new exit (range 3) 636 | -10/Materials | Identified exit to Materials 706 | -10/Materials | Entered Mines 711 | -10/Mines | Met a Derelict who couldn't figure out how to use a Trap Extractor 1002 | -10/Mines | Core integrity fell below 20% 1032 | -10/Mines | Destroyed by G-47 Trooper with Particle Gun Last Messages --------------- 00783_ Found Datajack. 00783_ Found Core Shielding. 00784_ Acquired 26 matter. 00785_ Dropped Autogun. 00788_ Acquired Core Shielding. 00941_ Lgt. Ion Engine destroyed. 00953_ Pulse Rifle destroyed. 00956_ Destroyed Particle Gun. 00984_ U-05 Engineer lays Concrete. 00991_ G-34 Mercenary destroyed. 00993_ Acquired 46 matter. 00994_ R-06 Scavenger collects Heat Sink. 01001_ Laser Drill disabled. 01016_ Aluminum Leg destroyed. 01018_ Autogun destroyed. 01019_ Kicked R-06 Scavenger out of the way. 01023_ Acquired Aluminum Leg. 01026_ Discarded Signal Interpreter. 01031_ G-47 Trooper suffers critical hit. 01031_ Destroyed Lgt. Nuclear Core. Map ----- +----------------------------------------------------+ | ????# ######### ##???????????????? | | ????## ## ## #???????????????? | | ?????##?## ### ########## ##??????????????? | | ?????????#####?# #????????## ##?????????????? | | ???????????????# #?????????# ##????????????? | | ???????????????# #????????## #????????????? | | ???????????????# #???????## ##????????????? | | ???????????????# #?####### ####?????????????? | | ???????????????# ### ##????????????????? | | ???????????????# #?????????????????? | | ???????????????# #?????????????????? | | ???????????????### ##?????????????????? | | ?????????????????# ##??????????????????? | | ?????????????????# ##???????????????????? | | ?????????????????## ##????????????????????? | | ??????????????????#### ##????????????????????? | | ?????????????????????## #????????????????????? | | ?????????????????????## #????????????????????? | | ????????????????????## #????????????????????? | | ????????????????????# ##????????????????????? | | ????????????????????# ##?????????????????????? | | ????????????????????## #??????????????????????? | | ?????????????????????## ##??????????????????????? | | ??????????????????????## #????#########??????????? | | ???????????????????????# ### ?????????? | | ???????????????????????# @ g """ ?????????????? | | ???????????????????????# """ ?????????????? | | ???????????????????????## ## u"" ?????????????? | | ????????????????????????t #? ???????????? | | ???????????????????????## #?? ?????????? | | ????????????????????????# ???######### ?????????? | | ???????????????????????? ??????????????????????? | | ???????????????????????? ?????????????????????? | | ???????????????????????? ?????????????????????? | | ??????????????????????? ?????????????????????? | | ??????????????????????? ????????????????????? | | ???????????????????????### ????????????????????? | | ??????????????????????????# ????????????????????? | | ???????????????????????????###???????????????????? | | ?????????????????????????????????????????????????? | | ?????????????????????????????????????????????????? | | ?????????????????????????????????????????????????? | | ?????????????????????????????????????????????????? | | ?????????????????????????????????????????????????? | | ?????????????????????????????????????????????????? | | | | | | | | | | | +----------------------------------------------------+ Best States ------------- Heat Dissipation 25 Energy Generation 10 Energy Capacity 125 Matter Stores 300 Matter Capacity 300 Sight Range 16 Terrain Scan Density 10 Core Shielding 20 Evasion (%) 40 Item Schematics ----------------- None Robot Schematics ------------------ G-34 Mercenary | -10/Materials | Hacked Fabricated ------------ Nothing Alien Tech Used ----------------- None Achievements -------------- None Challenges ------------ None Game ------ Seed SigixMobileSteel Manual? 0 Play Time 00:14:23 Cumulative 60.0 hours Start 2019.12.28 @ 16:47:12 End 2019.12.28 @ 16:58:30 Sessions 1 Manual Loads 0 Difficulty Rogue Special Mode None Game No. 59 Rogue 59 Adventurer 0 Explorer 0 Win Type - Total 0 Types 0/0/0/0/0/0/0 Lore% 32 Gallery% 46 Achievement% 34 Wizard Run 0 Options --------- ASCII 0 Keyboard 1 Movement Numpad Keybinds 0 Fullscreen 2 Font 18/SmallcapsGlow Map View 76x50 Tactical HUD 1 Map Filters NONE Filters NONE Steam 1 RUN: 70e6fad9-837b-4b17-849a-41d66c4a2090